[Event "Early-Titled-Tuesday-Blitz-February-13-2024"]
[Site "Chess.com"]
[Date "2024.02.13"]
[Round "6"]
[White "ACollins05"]
[Black "Ready4abattle"]
[Result "0-1"]
[WhiteElo "2432"]
[BlackElo "2257"]
[TimeControl "180+1"]
[EndTime "9:09:28 PST"]
[Termination "Ready4abattle won by resignation"]

1. e4 {[%clk 0:03:00.9]} 1... c5 {[%clk 0:03:00]} 2. Nf3 {[%clk 0:03:00.6]} 2...
Nc6 {[%clk 0:03:00.2]} 3. c3 {[%clk 0:03:00.5]} 3... d5 {[%clk 0:03:00]} 4. exd5
{[%clk 0:03:00.5]} 4... Qxd5 {[%clk 0:03:00.9]} 5. d4 {[%clk 0:03:00.7]} 5...
Bf5 {[%clk 0:03:01.1]} 6. Be3 {[%clk 0:02:58.4]} 6... Nf6 {[%clk 0:02:57.5]} 7.
Be2 {[%clk 0:02:54.4]} 7... e6 {[%clk 0:02:48.5]} 8. dxc5 {[%clk 0:02:52.8]}
8... Qxd1+ {[%clk 0:02:42.6]} 9. Bxd1 {[%clk 0:02:53.7]} 9... Ng4 {[%clk
0:02:40.2]} 10. b4 {[%clk 0:02:45.5]} 10... Nxe3 {[%clk 0:02:38.5]} 11. fxe3
{[%clk 0:02:46.4]} 11... a5 {[%clk 0:02:19.9]} 12. Nd4 {[%clk 0:02:40.1]} 12...
Bxb1 {[%clk 0:01:50.9]} 13. Nxc6 {[%clk 0:02:29.7]} 13... bxc6 {[%clk 0:01:50]}
14. Rxb1 {[%clk 0:02:15.6]} 14... axb4 {[%clk 0:01:50.2]} 15. cxb4 {[%clk
0:02:16.5]} 15... Rxa2 {[%clk 0:01:48.7]} 16. Bf3 {[%clk 0:02:16.7]} 16... Kd7
{[%clk 0:01:43.2]} 17. O-O {[%clk 0:02:16]} 17... Be7 {[%clk 0:01:39.8]} 18. b5
{[%clk 0:02:09.5]} 18... Bxc5 {[%clk 0:01:21.8]} 19. bxc6+ {[%clk 0:02:08.1]}
19... Kd6 {[%clk 0:01:15.5]} 20. Rfd1+ {[%clk 0:02:07.9]} 20... Ke5 {[%clk
0:01:12]} 21. Rb5 {[%clk 0:02:03.6]} 21... Rc2 {[%clk 0:01:09.3]} 22. c7 {[%clk
0:02:02.4]} 22... Rc8 {[%clk 0:01:02.6]} 23. Rd7 {[%clk 0:01:59.9]} 23... Kf6
{[%clk 0:00:59.9]} 24. Rb7 {[%clk 0:01:57.8]} 24... Bxe3+ {[%clk 0:00:56.3]} 25.
Kf1 {[%clk 0:01:57.2]} 25... Bf4 {[%clk 0:00:47.8]} 26. Be4 {[%clk 0:01:45.3]}
26... R2xc7 {[%clk 0:00:43.4]} 27. Rbxc7 {[%clk 0:01:41.1]} 27... Rxc7 {[%clk
0:00:44.3]} 28. Rxc7 {[%clk 0:01:41.1]} 28... Bxc7 {[%clk 0:00:44.5]} 29. h3
{[%clk 0:01:38]} 29... h6 {[%clk 0:00:42.5]} 30. Ke2 {[%clk 0:01:37.8]} 30...
Ke5 {[%clk 0:00:42.9]} 31. Kf3 {[%clk 0:01:33.7]} 31... f5 {[%clk 0:00:41.8]}
32. Bb1 {[%clk 0:01:33]} 32... g5 {[%clk 0:00:40.6]} 33. g4 {[%clk 0:01:32.4]}
33... Bb6 {[%clk 0:00:33.3]} 34. Bc2 {[%clk 0:01:31.3]} 34... f4 {[%clk
0:00:27.4]} 35. Bh7 {[%clk 0:01:30.8]} 35... Kd4 {[%clk 0:00:27.5]} 36. Bg8
{[%clk 0:01:28.2]} 36... e5 {[%clk 0:00:27.3]} 37. Bh7 {[%clk 0:01:29.1]} 37...
Kc3 {[%clk 0:00:26.2]} 38. Be4 {[%clk 0:01:26.2]} 38... Bd4 {[%clk 0:00:26.1]}
39. Ba8 {[%clk 0:01:25.5]} 39... Kd2 {[%clk 0:00:26.3]} 40. Bb7 {[%clk
0:01:05.2]} 40... Ke1 {[%clk 0:00:26.1]} 41. Kg2 {[%clk 0:01:05.3]} 41... Ke2
{[%clk 0:00:26.1]} 42. Bc6 {[%clk 0:01:01.7]} 42... Ke3 {[%clk 0:00:26.5]} 43.
Ba4 {[%clk 0:00:59.7]} 43... e4 {[%clk 0:00:27.4]} 44. Bc6 {[%clk 0:00:59.4]}
44... f3+ {[%clk 0:00:25.3]} 45. Kf1 {[%clk 0:01:00]} 45... Kf4 {[%clk
0:00:25.3]} 46. Bd5 {[%clk 0:00:59.5]} 46... e3 {[%clk 0:00:25.7]} 47. Bc4
{[%clk 0:00:58.1]} 47... Bc3 {[%clk 0:00:26.2]} 48. Ba6 {[%clk 0:00:54.6]} 48...
Kg3 {[%clk 0:00:26.6]} 49. Bb7 {[%clk 0:00:55]} 49... e2+ {[%clk 0:00:25.9]} 0-1

[Event "Early-Titled-Tuesday-Blitz-February-13-2024"]
[Site "Chess.com"]
[Date "2024.02.13"]
[Round "6"]
[White "HelvertHernandez"]
[Black "BeardedNM"]
[Result "1-0"]
[WhiteElo "1964"]
[BlackElo "2188"]
[TimeControl "180+1"]
[EndTime "9:09:29 PST"]
[Termination "HelvertHernandez won by resignation"]

1. e4 {[%clk 0:02:55.9]} 1... e6 {[%clk 0:02:59.6]} 2. d4 {[%clk 0:02:54.9]}
2... d5 {[%clk 0:03:00.2]} 3. exd5 {[%clk 0:02:54.6]} 3... exd5 {[%clk
0:03:01.1]} 4. Nf3 {[%clk 0:02:54.2]} 4... Bd6 {[%clk 0:03:01.2]} 5. Bd3 {[%clk
0:02:53.9]} 5... Nc6 {[%clk 0:03:01]} 6. O-O {[%clk 0:02:53.1]} 6... Bg4 {[%clk
0:03:00.8]} 7. Re1+ {[%clk 0:02:52.8]} 7... Nge7 {[%clk 0:03:01.1]} 8. c3 {[%clk
0:02:52.3]} 8... f6 {[%clk 0:03:00.3]} 9. Nbd2 {[%clk 0:02:45.6]} 9... Qd7
{[%clk 0:03:00]} 10. Nf1 {[%clk 0:02:42.6]} 10... O-O-O {[%clk 0:02:55.9]} 11.
b4 {[%clk 0:02:41.6]} 11... Rde8 {[%clk 0:02:54.9]} 12. a4 {[%clk 0:02:41.4]}
12... Nf5 {[%clk 0:02:36.9]} 13. Ne3 {[%clk 0:02:27.8]} 13... Nxe3 {[%clk
0:02:29.3]} 14. Bxe3 {[%clk 0:02:27.7]} 14... Ne7 {[%clk 0:02:20.8]} 15. a5
{[%clk 0:02:25.6]} 15... Kb8 {[%clk 0:02:10.3]} 16. b5 {[%clk 0:02:25]} 16...
Nf5 {[%clk 0:02:09.4]} 17. b6 {[%clk 0:02:17.2]} 17... a6 {[%clk 0:01:56.5]} 18.
bxc7+ {[%clk 0:02:13.8]} 18... Bxc7 {[%clk 0:01:57.4]} 19. Qb3 {[%clk
0:02:07.2]} 19... Bxf3 {[%clk 0:01:49]} 20. gxf3 {[%clk 0:02:05.1]} 20... Nh4
{[%clk 0:01:28.4]} 21. Bxa6 {[%clk 0:01:45.7]} 21... Nxf3+ {[%clk 0:01:05.7]}
22. Kf1 {[%clk 0:01:40.2]} 22... Bxh2 {[%clk 0:00:49.8]} 23. Reb1 {[%clk
0:01:36.3]} 23... Re7 {[%clk 0:00:41.7]} 24. Ke2 {[%clk 0:01:01.7]} 24... Qg4
{[%clk 0:00:34.2]} 25. Qb4 {[%clk 0:00:29.2]} 25... Nxd4+ {[%clk 0:00:21.4]} 26.
Kd2 {[%clk 0:00:20.3]} 26... Qe2+ {[%clk 0:00:19.3]} 27. Bxe2 {[%clk 0:00:15.7]}
1-0

[Event "Early-Titled-Tuesday-Blitz-February-13-2024"]
[Site "Chess.com"]
[Date "2024.02.13"]
[Round "6"]
[White "GasconJR"]
[Black "jocmil"]
[Result "0-1"]
[WhiteElo "2559"]
[BlackElo "2749"]
[TimeControl "180+1"]
[EndTime "9:09:30 PST"]
[Termination "jocmil won by resignation"]

1. e4 {[%clk 0:03:00.9]} 1... c6 {[%clk 0:02:59.3]} 2. d4 {[%clk 0:02:58.8]}
2... d5 {[%clk 0:03:00.2]} 3. exd5 {[%clk 0:02:59.5]} 3... cxd5 {[%clk
0:03:00.6]} 4. Bd3 {[%clk 0:03:00.2]} 4... Nc6 {[%clk 0:02:59.4]} 5. c3 {[%clk
0:03:00.6]} 5... Nf6 {[%clk 0:02:59]} 6. Bf4 {[%clk 0:02:58.5]} 6... Bg4 {[%clk
0:02:58.4]} 7. Qb3 {[%clk 0:02:57.9]} 7... Qc8 {[%clk 0:02:58.3]} 8. Nd2 {[%clk
0:02:57.5]} 8... e6 {[%clk 0:02:58.1]} 9. Ngf3 {[%clk 0:02:57.9]} 9... Be7
{[%clk 0:02:58.2]} 10. O-O {[%clk 0:02:57.6]} 10... O-O {[%clk 0:02:57.7]} 11.
Rae1 {[%clk 0:02:57.8]} 11... Bh5 {[%clk 0:02:57.1]} 12. Ne5 {[%clk 0:02:57.3]}
12... Nxe5 {[%clk 0:02:48.8]} 13. Bxe5 {[%clk 0:02:50.8]} 13... Bg6 {[%clk
0:02:41.1]} 14. Bxg6 {[%clk 0:02:49.8]} 14... hxg6 {[%clk 0:02:42]} 15. Nf3
{[%clk 0:02:46.8]} 15... Ne4 {[%clk 0:02:37.3]} 16. h4 {[%clk 0:02:37.6]} 16...
Qc6 {[%clk 0:02:29.8]} 17. Bf4 {[%clk 0:02:29.2]} 17... Bd6 {[%clk 0:02:17.4]}
18. Bxd6 {[%clk 0:02:27.4]} 18... Qxd6 {[%clk 0:02:18.3]} 19. Qd1 {[%clk
0:02:19.5]} 19... Qf4 {[%clk 0:02:15.3]} 20. g3 {[%clk 0:02:19.1]} 20... Qf5
{[%clk 0:01:48.6]} 21. Kg2 {[%clk 0:02:16.4]} 21... f6 {[%clk 0:01:42.9]} 22.
Rh1 {[%clk 0:02:15.4]} 22... g5 {[%clk 0:01:41]} 23. hxg5 {[%clk 0:01:21.3]}
23... fxg5 {[%clk 0:01:40.6]} 24. Ref1 {[%clk 0:01:21.9]} 24... g4 {[%clk
0:01:14]} 25. Ne5 {[%clk 0:01:21.5]} 25... Nxf2 {[%clk 0:01:08.9]} 26. Qe2
{[%clk 0:01:20]} 26... Qe4+ {[%clk 0:01:05.1]} 27. Qxe4 {[%clk 0:01:19.5]} 27...
Nxe4 {[%clk 0:01:06]} 28. Rh8+ {[%clk 0:00:33.6]} 28... Kxh8 {[%clk 0:01:04.3]}
29. Ng6+ {[%clk 0:00:33.7]} 29... Kh7 {[%clk 0:00:57.4]} 30. Nxf8+ {[%clk
0:00:14.7]} 30... Kg8 {[%clk 0:00:48.2]} 31. Nxe6 {[%clk 0:00:15.2]} 31... Nd2
{[%clk 0:00:46.7]} 32. Rf5 {[%clk 0:00:09.1]} 32... Nc4 {[%clk 0:00:44.5]} 33.
Rxd5 {[%clk 0:00:08.3]} 33... Ne3+ {[%clk 0:00:44]} 0-1

[Event "Early-Titled-Tuesday-Blitz-February-13-2024"]
[Site "Chess.com"]
[Date "2024.02.13"]
[Round "6"]
[White "DenLaz"]
[Black "alexrustemov"]
[Result "1-0"]
[WhiteElo "3051"]
[BlackElo "2828"]
[TimeControl "180+1"]
[EndTime "9:09:34 PST"]
[Termination "DenLaz won by resignation"]

1. d4 {[%clk 0:02:59.8]} 1... g6 {[%clk 0:02:58.2]} 2. c4 {[%clk 0:03:00]} 2...
Bg7 {[%clk 0:02:58.6]} 3. Nf3 {[%clk 0:03:00.6]} 3... c5 {[%clk 0:02:58]} 4. d5
{[%clk 0:03:00.4]} 4... f5 {[%clk 0:02:52.8]} 5. g3 {[%clk 0:02:59.8]} 5... Nf6
{[%clk 0:02:52.6]} 6. Bg2 {[%clk 0:03:00.2]} 6... d6 {[%clk 0:02:53.2]} 7. O-O
{[%clk 0:03:00.7]} 7... O-O {[%clk 0:02:53.8]} 8. Nc3 {[%clk 0:03:01.4]} 8...
Na6 {[%clk 0:02:54]} 9. e4 {[%clk 0:02:50]} 9... Nc7 {[%clk 0:02:45.1]} 10. exf5
{[%clk 0:02:31]} 10... Bxf5 {[%clk 0:02:43.5]} 11. Re1 {[%clk 0:02:31.7]} 11...
Qd7 {[%clk 0:02:43.3]} 12. Bf4 {[%clk 0:02:22.5]} 12... a6 {[%clk 0:02:37]} 13.
a4 {[%clk 0:02:22]} 13... b6 {[%clk 0:02:31.6]} 14. Qd2 {[%clk 0:02:21]} 14...
Rab8 {[%clk 0:02:29.3]} 15. Ng5 {[%clk 0:02:13.3]} 15... h6 {[%clk 0:02:07.6]}
16. Ne6 {[%clk 0:01:09.7]} 16... Nxe6 {[%clk 0:02:05.8]} 17. dxe6 {[%clk
0:01:08.8]} 17... Bxe6 {[%clk 0:02:06.4]} 18. Bxh6 {[%clk 0:00:36.6]} 18... Bxc4
{[%clk 0:02:03.9]} 19. Ne4 {[%clk 0:00:37]} 19... Rbe8 {[%clk 0:01:31.4]} 20.
Bxg7 {[%clk 0:00:28.2]} 20... Kxg7 {[%clk 0:01:31]} 21. Ng5 {[%clk 0:00:28.6]}
21... e5 {[%clk 0:01:26.2]} 22. b4 {[%clk 0:00:26.4]} 22... cxb4 {[%clk
0:01:18.8]} 23. Qxb4 {[%clk 0:00:25.7]} 23... b5 {[%clk 0:01:18.9]} 24. axb5
{[%clk 0:00:25.3]} 24... axb5 {[%clk 0:01:19.5]} 25. Ra6 {[%clk 0:00:25.2]}
25... d5 {[%clk 0:01:13.3]} 26. Rea1 {[%clk 0:00:25.1]} 26... Re7 {[%clk
0:01:13.2]} 27. Bh3 {[%clk 0:00:24.6]} 27... Qc7 {[%clk 0:01:07]} 28. Ra7 {[%clk
0:00:15.9]} 1-0

[Event "Early-Titled-Tuesday-Blitz-February-13-2024"]
[Site "Chess.com"]
[Date "2024.02.13"]
[Round "6"]
[White "CFalcons8"]
[Black "Leebit02"]
[Result "1-0"]
[WhiteElo "2383"]
[BlackElo "2531"]
[TimeControl "180+1"]
[EndTime "9:09:34 PST"]
[Termination "CFalcons8 won by resignation"]

1. d4 {[%clk 0:02:49.3]} 1... d5 {[%clk 0:02:59.1]} 2. c4 {[%clk 0:02:47.5]}
2... dxc4 {[%clk 0:02:59.2]} 3. e3 {[%clk 0:02:47.3]} 3... Nf6 {[%clk
0:02:59.2]} 4. Bxc4 {[%clk 0:02:47.6]} 4... e6 {[%clk 0:02:59.6]} 5. Nf3 {[%clk
0:02:47.7]} 5... c5 {[%clk 0:02:59.9]} 6. O-O {[%clk 0:02:47.4]} 6... a6 {[%clk
0:02:59.9]} 7. a4 {[%clk 0:02:46.7]} 7... Nc6 {[%clk 0:02:53.3]} 8. b3 {[%clk
0:02:39.7]} 8... cxd4 {[%clk 0:02:45.4]} 9. exd4 {[%clk 0:02:40]} 9... Be7
{[%clk 0:02:45.9]} 10. Bb2 {[%clk 0:02:40.2]} 10... O-O {[%clk 0:02:45.9]} 11.
Qe2 {[%clk 0:02:40.3]} 11... Nb4 {[%clk 0:02:43.1]} 12. Nbd2 {[%clk 0:02:39.3]}
12... Bd7 {[%clk 0:02:42.9]} 13. Ne5 {[%clk 0:02:38.3]} 13... Bc6 {[%clk
0:02:29.3]} 14. Nxc6 {[%clk 0:02:36.7]} 14... Nxc6 {[%clk 0:02:29.3]} 15. Nf3
{[%clk 0:02:35.2]} 15... Rc8 {[%clk 0:02:26.3]} 16. Rfd1 {[%clk 0:02:31.9]}
16... Na5 {[%clk 0:02:07.4]} 17. Rac1 {[%clk 0:02:24.2]} 17... Qb6 {[%clk
0:02:02.4]} 18. Bc3 {[%clk 0:02:15.2]} 18... Bb4 {[%clk 0:01:49.7]} 19. Ne5
{[%clk 0:02:10.8]} 19... Bxc3 {[%clk 0:01:35.4]} 20. Rxc3 {[%clk 0:02:11.7]}
20... Rfd8 {[%clk 0:01:06.5]} 21. Rcd3 {[%clk 0:02:02]} 21... Nd5 {[%clk
0:00:55.8]} 22. Qg4 {[%clk 0:01:36.4]} 22... f6 {[%clk 0:00:44.3]} 23. Rg3
{[%clk 0:01:26.8]} 23... Rc7 {[%clk 0:00:41.2]} 24. Nf3 {[%clk 0:01:06.3]} 24...
Re7 {[%clk 0:00:30]} 25. Re1 {[%clk 0:01:03.2]} 25... Qc6 {[%clk 0:00:24.9]} 26.
Bd3 {[%clk 0:00:56.1]} 26... Nb4 {[%clk 0:00:21]} 27. Be4 {[%clk 0:00:52.3]}
27... Qe8 {[%clk 0:00:21]} 28. Qh4 {[%clk 0:00:46.9]} 28... f5 {[%clk
0:00:19.2]} 29. Bxf5 {[%clk 0:00:42.8]} 29... Nac6 {[%clk 0:00:13.9]} 30. Qxh7+
{[%clk 0:00:42.7]} 1-0

[Event "Early-Titled-Tuesday-Blitz-February-13-2024"]
[Site "Chess.com"]
[Date "2024.02.13"]
[Round "6"]
[White "JiaHaoxiang"]
[Black "Vaathi_Coming"]
[Result "0-1"]
[WhiteElo "2600"]
[BlackElo "2895"]
[TimeControl "180+1"]
[EndTime "9:09:37 PST"]
[Termination "Vaathi_Coming won by resignation"]

1. d4 {[%clk 0:03:00.9]} 1... c6 {[%clk 0:02:58.9]} 2. Nf3 {[%clk 0:02:58.6]}
2... d5 {[%clk 0:02:59.8]} 3. c4 {[%clk 0:02:58]} 3... e6 {[%clk 0:02:57]} 4. g3
{[%clk 0:02:55.5]} 4... Nf6 {[%clk 0:02:55.4]} 5. Bg2 {[%clk 0:02:55.9]} 5...
dxc4 {[%clk 0:02:55.3]} 6. a4 {[%clk 0:02:51.9]} 6... Bb4+ {[%clk 0:02:52.4]} 7.
Nbd2 {[%clk 0:02:50.6]} 7... O-O {[%clk 0:02:44]} 8. O-O {[%clk 0:02:50.2]} 8...
b5 {[%clk 0:02:44]} 9. e3 {[%clk 0:02:36.7]} 9... Bb7 {[%clk 0:02:42.2]} 10. Qe2
{[%clk 0:02:36.8]} 10... Nbd7 {[%clk 0:02:39.7]} 11. e4 {[%clk 0:02:37]} 11...
a6 {[%clk 0:02:33.8]} 12. e5 {[%clk 0:02:36.8]} 12... Nd5 {[%clk 0:02:31.3]} 13.
Ne4 {[%clk 0:02:37.4]} 13... c5 {[%clk 0:02:29.2]} 14. Nd6 {[%clk 0:01:55.8]}
14... Bc6 {[%clk 0:02:21.3]} 15. axb5 {[%clk 0:01:38.1]} 15... axb5 {[%clk
0:02:22.2]} 16. Rxa8 {[%clk 0:01:30.5]} 16... Qxa8 {[%clk 0:02:23.1]} 17. Ng5
{[%clk 0:01:30.5]} 17... h6 {[%clk 0:02:18.9]} 18. Ngxf7 {[%clk 0:01:22.7]}
18... Rxf7 {[%clk 0:02:17.2]} 19. Nxf7 {[%clk 0:01:23]} 19... Kxf7 {[%clk
0:02:18.1]} 20. Bh3 {[%clk 0:01:09.2]} 20... cxd4 {[%clk 0:02:13.8]} 21. Qh5+
{[%clk 0:01:09.2]} 21... Kf8 {[%clk 0:01:51.7]} 22. Bxe6 {[%clk 0:01:05.3]}
22... Qe8 {[%clk 0:01:50.3]} 23. Qf5+ {[%clk 0:01:05.1]} 23... Ke7 {[%clk
0:01:42.9]} 24. Bxd5 {[%clk 0:00:24.7]} 24... Bxd5 {[%clk 0:01:43.8]} 25. Qg4
{[%clk 0:00:25.4]} 25... Qf7 {[%clk 0:01:10.7]} 26. f4 {[%clk 0:00:25.1]} 26...
Bc5 {[%clk 0:01:09.2]} 27. Re1 {[%clk 0:00:14.2]} 27... d3+ {[%clk 0:00:58.9]}
28. Kf1 {[%clk 0:00:14.3]} 28... Be6 {[%clk 0:00:29.3]} 29. Qf3 {[%clk
0:00:12.9]} 29... Bh3+ {[%clk 0:00:28.2]} 0-1

[Event "Early-Titled-Tuesday-Blitz-February-13-2024"]
[Site "Chess.com"]
[Date "2024.02.13"]
[Round "6"]
[White "ilqar_74"]
[Black "pooh2012"]
[Result "1-0"]
[WhiteElo "2810"]
[BlackElo "2560"]
[TimeControl "180+1"]
[EndTime "9:09:38 PST"]
[Termination "ilqar_74 won on time"]

1. e4 {[%clk 0:03:00.9]} 1... c6 {[%clk 0:02:22.5]} 2. Nc3 {[%clk 0:03:00.3]}
2... d5 {[%clk 0:02:22.7]} 3. Nf3 {[%clk 0:03:01.2]} 3... Bg4 {[%clk 0:02:21.5]}
4. h3 {[%clk 0:03:01.3]} 4... Bxf3 {[%clk 0:02:21.6]} 5. Qxf3 {[%clk 0:03:02.2]}
5... e6 {[%clk 0:02:21.8]} 6. d4 {[%clk 0:03:02.8]} 6... Nd7 {[%clk 0:02:19.2]}
7. Bd3 {[%clk 0:03:02.7]} 7... dxe4 {[%clk 0:02:18.1]} 8. Nxe4 {[%clk
0:03:03.6]} 8... Ngf6 {[%clk 0:02:18.3]} 9. O-O {[%clk 0:03:03.9]} 9... Be7
{[%clk 0:02:17.9]} 10. Ng5 {[%clk 0:03:01.9]} 10... h6 {[%clk 0:02:11.9]} 11.
Nxe6 {[%clk 0:02:32.6]} 11... fxe6 {[%clk 0:02:11.1]} 12. Bg6+ {[%clk
0:02:31.4]} 12... Kf8 {[%clk 0:02:11.1]} 13. Qe2 {[%clk 0:02:21.3]} 13... Nb6
{[%clk 0:01:36.4]} 14. Qxe6 {[%clk 0:02:05.8]} 14... Qd5 {[%clk 0:01:35.3]} 15.
Qe2 {[%clk 0:02:05.8]} 15... Rd8 {[%clk 0:01:10.2]} 16. Re1 {[%clk 0:01:58.6]}
16... Rd7 {[%clk 0:00:58.6]} 17. c3 {[%clk 0:01:52.5]} 17... Qc4 {[%clk
0:00:27.5]} 18. Qf3 {[%clk 0:01:46.8]} 18... Qd5 {[%clk 0:00:26.1]} 19. Qg3
{[%clk 0:01:42.4]} 19... Bd6 {[%clk 0:00:18.9]} 20. Bf4 {[%clk 0:01:41.8]} 20...
Nc8 {[%clk 0:00:18.8]} 21. c4 {[%clk 0:01:29.5]} 21... Qxc4 {[%clk 0:00:13.2]}
22. Bf5 {[%clk 0:01:25]} 22... Nh5 {[%clk 0:00:10.8]} 23. Qh4 {[%clk 0:00:49.3]}
23... Nxf4 {[%clk 0:00:06.7]} 24. Bxd7 {[%clk 0:00:48.4]} 24... Ne7 {[%clk
0:00:07.3]} 25. Rxe7 {[%clk 0:00:43.4]} 25... g5 {[%clk 0:00:05.7]} 26. Re8+
{[%clk 0:00:41.5]} 26... Kf7 {[%clk 0:00:05.2]} 27. Qg4 {[%clk 0:00:36.4]} 27...
Rxe8 {[%clk 0:00:05]} 28. Qf5+ {[%clk 0:00:35.8]} 28... Ke7 {[%clk 0:00:01.6]}
29. Bxe8 {[%clk 0:00:32.9]} 29... Kxe8 {[%clk 0:00:01.3]} 30. Qc8+ {[%clk
0:00:32.3]} 1-0

[Event "Early-Titled-Tuesday-Blitz-February-13-2024"]
[Site "Chess.com"]
[Date "2024.02.13"]
[Round "6"]
[White "BelaKis"]
[Black "fabianvivasz"]
[Result "1-0"]
[WhiteElo "2209"]
[BlackElo "2343"]
[TimeControl "180+1"]
[EndTime "9:09:38 PST"]
[Termination "BelaKis won by resignation"]

1. d4 {[%clk 0:03:00.9]} 1... Nf6 {[%clk 0:02:51.5]} 2. c4 {[%clk 0:03:00.9]}
2... g6 {[%clk 0:02:51.8]} 3. Nc3 {[%clk 0:03:00.7]} 3... d5 {[%clk 0:02:52.3]}
4. cxd5 {[%clk 0:03:01]} 4... Nxd5 {[%clk 0:02:53.2]} 5. e4 {[%clk 0:03:01.4]}
5... Nxc3 {[%clk 0:02:53.8]} 6. bxc3 {[%clk 0:03:02.3]} 6... Bg7 {[%clk
0:02:54.5]} 7. Bc4 {[%clk 0:03:02.7]} 7... c5 {[%clk 0:02:55]} 8. Ne2 {[%clk
0:03:03.1]} 8... O-O {[%clk 0:02:55.5]} 9. Be3 {[%clk 0:02:52.9]} 9... Nc6
{[%clk 0:02:55.6]} 10. f3 {[%clk 0:02:52.5]} 10... cxd4 {[%clk 0:02:40.7]} 11.
cxd4 {[%clk 0:02:53.4]} 11... Qa5+ {[%clk 0:02:41]} 12. Kf2 {[%clk 0:02:53.1]}
12... Rd8 {[%clk 0:02:31]} 13. h4 {[%clk 0:02:51.2]} 13... Nxd4 {[%clk
0:02:13.5]} 14. Nxd4 {[%clk 0:02:44]} 14... Bxd4 {[%clk 0:02:07.6]} 15. Bxd4
{[%clk 0:02:29.8]} 15... e5 {[%clk 0:02:07.6]} 16. Bxf7+ {[%clk 0:01:39.8]}
16... Kxf7 {[%clk 0:02:06.1]} 17. Qb3+ {[%clk 0:01:40]} 17... Be6 {[%clk
0:02:05.5]} 18. Qxb7+ {[%clk 0:01:38]} 18... Kg8 {[%clk 0:01:25.3]} 19. Be3
{[%clk 0:01:22.6]} 19... Rab8 {[%clk 0:01:14.9]} 20. Qe7 {[%clk 0:00:44.1]}
20... Bf7 {[%clk 0:00:46.1]} 21. h5 {[%clk 0:00:29.3]} 21... Qc3 {[%clk
0:00:09.5]} 22. Bh6 {[%clk 0:00:16.5]} 22... Rd2+ {[%clk 0:00:07.3]} 23. Kg3
{[%clk 0:00:15.9]} 23... Qc2 {[%clk 0:00:06.7]} 24. Rag1 {[%clk 0:00:13.4]}
24... Re2 {[%clk 0:00:05]} 25. Qf6 {[%clk 0:00:12.6]} 1-0

[Event "Early-Titled-Tuesday-Blitz-February-13-2024"]
[Site "Chess.com"]
[Date "2024.02.13"]
[Round "6"]
[White "martinmena"]
[Black "Cambek64"]
[Result "0-1"]
[WhiteElo "2109"]
[BlackElo "2508"]
[TimeControl "180+1"]
[EndTime "9:09:38 PST"]
[Termination "Cambek64 won on time"]

1. c4 {[%clk 0:03:00.9]} 1... e5 {[%clk 0:02:58.3]} 2. Nc3 {[%clk 0:02:54.6]}
2... Nc6 {[%clk 0:02:58.7]} 3. g3 {[%clk 0:02:54.3]} 3... f5 {[%clk 0:02:57.5]}
4. Bg2 {[%clk 0:02:54.5]} 4... Nf6 {[%clk 0:02:57.9]} 5. d3 {[%clk 0:02:52.3]}
5... Bb4 {[%clk 0:02:58.2]} 6. a3 {[%clk 0:02:49]} 6... Bxc3+ {[%clk 0:02:57.1]}
7. bxc3 {[%clk 0:02:49.6]} 7... d6 {[%clk 0:02:57]} 8. Bg5 {[%clk 0:02:45.7]}
8... O-O {[%clk 0:02:57.3]} 9. c5 {[%clk 0:02:36.3]} 9... dxc5 {[%clk
0:02:54.2]} 10. Qb3+ {[%clk 0:02:35.8]} 10... Kh8 {[%clk 0:02:52.3]} 11. Bxc6
{[%clk 0:02:26.1]} 11... bxc6 {[%clk 0:02:51.1]} 12. Nf3 {[%clk 0:02:25.9]}
12... Be6 {[%clk 0:02:42]} 13. Qxe6 {[%clk 0:02:20.9]} 13... e4 {[%clk
0:02:36.6]} 14. dxe4 {[%clk 0:02:07.1]} 14... fxe4 {[%clk 0:02:36.5]} 15. Ne5
{[%clk 0:02:05.5]} 15... Qd5 {[%clk 0:02:23.3]} 16. Qxd5 {[%clk 0:01:58.7]}
16... cxd5 {[%clk 0:02:23.6]} 17. Bxf6 {[%clk 0:01:55.8]} 17... Rxf6 {[%clk
0:02:20.7]} 18. Ng4 {[%clk 0:00:53.6]} 18... Re6 {[%clk 0:02:14.1]} 19. O-O-O
{[%clk 0:00:48.5]} 19... c6 {[%clk 0:02:07.4]} 20. Kc2 {[%clk 0:00:39.1]} 20...
Rf8 {[%clk 0:02:04.4]} 21. Rhf1 {[%clk 0:00:34.2]} 21... h5 {[%clk 0:02:03]} 22.
Ne3 {[%clk 0:00:32.8]} 22... g5 {[%clk 0:02:03.6]} 23. Rb1 {[%clk 0:00:19.2]}
23... Rf7 {[%clk 0:01:58.8]} 24. Rb8+ {[%clk 0:00:18.7]} 24... Kg7 {[%clk
0:01:59.4]} 25. Nd1 {[%clk 0:00:17.1]} 25... d4 {[%clk 0:01:57]} 26. cxd4 {[%clk
0:00:16.7]} 26... cxd4 {[%clk 0:01:57.6]} 27. Rd8 {[%clk 0:00:16.8]} 27... c5
{[%clk 0:01:57.2]} 28. Rc8 {[%clk 0:00:17]} 28... Re5 {[%clk 0:01:54.8]} 29. Nb2
{[%clk 0:00:17.6]} 29... Ref5 {[%clk 0:01:53.6]} 30. Kd1 {[%clk 0:00:14.9]}
30... Rxf2 {[%clk 0:01:50]} 31. Rxf2 {[%clk 0:00:15.2]} 31... Rxf2 {[%clk
0:01:50.6]} 32. Rxc5 {[%clk 0:00:15.9]} 32... Kg6 {[%clk 0:01:49]} 33. h4 {[%clk
0:00:10]} 33... gxh4 {[%clk 0:01:47.7]} 34. gxh4 {[%clk 0:00:10.9]} 34... Rf4
{[%clk 0:01:42.5]} 35. Rd5 {[%clk 0:00:07.4]} 35... e3 {[%clk 0:01:41.5]} 36.
Nd3 {[%clk 0:00:06.6]} 36... Rxh4 {[%clk 0:01:40.5]} 37. Ne5+ {[%clk 0:00:05.1]}
37... Kf6 {[%clk 0:01:37]} 38. Nf3 {[%clk 0:00:04.3]} 38... Rh1+ {[%clk
0:01:32.3]} 39. Kc2 {[%clk 0:00:03.9]} 39... h4 {[%clk 0:01:33.1]} 40. Rxd4
{[%clk 0:00:04]} 40... h3 {[%clk 0:01:33.6]} 41. Rh4 {[%clk 0:00:02.7]} 41...
Kf5 {[%clk 0:01:32.7]} 42. Kd3 {[%clk 0:00:03]} 42... Ra1 {[%clk 0:01:31.8]} 43.
Rxh3 {[%clk 0:00:03.3]} 43... Rxa3+ {[%clk 0:01:32.4]} 44. Kd4 {[%clk
0:00:03.7]} 44... Kf4 {[%clk 0:01:31.1]} 45. Rh4+ {[%clk 0:00:03.4]} 45... Kg3
{[%clk 0:01:31]} 46. Re4 {[%clk 0:00:02.7]} 46... Kf2 {[%clk 0:01:31]} 47. Ng5
{[%clk 0:00:01.6]} 47... Kxe2 {[%clk 0:01:29.8]} 48. Nh3 {[%clk 0:00:01.9]}
48... Kf3 {[%clk 0:01:24.3]} 0-1